Cogmind - Beta 13 @@@ ROGUE MODE // 2024.04.23 @ 12:58:58 Player: Red_Zig Result: Destroyed by RH-5W5(R) with Subdweller Shrapnel Launcher Performance ------------- Evolutions (0) 0 Regions Visited (2) 400 Robots Destroyed (24) 120 Value Destroyed (519) 519 Prototype IDs (10) 200 Alien Tech Used (0) 0 Bonus (-19) -19 TOTAL SCORE: 1220 Bonus ------- Friendly Fire -19 Cogmind --------- Core Integrity 0/250 Matter 273/300 Energy 250/250 System Corruption 1% Temperature Cool (0) Movement Treading (160) Location -10/Subcaves Parts ------- > --- POWER (1) -------- Ion Engine > --- PROPULSION (2) --- Light Treads Spiked Treads > --- UTILITY (2) ------ Medium Storage Unit Structural Scanner > --- WEAPON (2) ------- Mining Laser Flamer > --- INVENTORY (10) --- Flightbrick Disposable Heat Sink Small Matter Pod (0) Makeshift Hacking Suite Heavy Battle Rifle Grenade Launcher Flamer Peak State ------------ > --- POWER ------------ Subdweller Power Source > --- PROPULSION ------- Compact Wheel Subdweller Monowheel > --- UTILITY ---------- Medium Storage Unit Structural Scanner > --- WEAPON ----------- Battle Rifle Heavy Battle Rifle > --- INVENTORY -------- Ion Engine Light Treads Small Matter Pod Hacking Suite Subdweller Machine Gun Grenade Launcher Grenade Launcher Mining Laser Mining Laser Flamer [Rating: 14] Favorites ----------- Power Light Ion Engine Engine Light Ion Engine Propulsion Light Treads Treads Light Treads Leg Aluminum Leg Wheel Compact Wheel Utility Structural Scanner Device Structural Scanner Storage Medium Storage Unit Weapon Light Assault Rifle Ballistic Gun Light Assault Rifle Launcher Grenade Launcher Special Weapon Mining Laser Build | -11 -10 -10 ------- Run | Yrd Mat Sub Slots Evolved . | . . . Power . | . . . Propulsion . | . . . Utility . | . . . Weapon . | . . . Parts Attached 49 | 8 6 35 Power 5 | 1 1 3 Engine 5 | 1 1 3 Core . | . . . Reactor . | . . . Propulsion 10 | 4 1 5 Treads 5 | 2 1 2 Leg 3 | 2 . 1 Wheel 2 | . . 2 Hover . | . . . Flight . | . . . Utility 3 | 1 2 . Device 1 | . 1 . Storage 2 | 1 1 . Processor . | . . . Hackware . | . . . Protection . | . . . Artifact . | . . . Weapon 31 | 2 2 27 Energy Gun . | . . . Energy Cannon . | . . . Ballistic Gun 14 | 2 1 11 Ballistic Cannon . | . . . Launcher 7 | . 1 6 Special Weapon 10 | . . 10 Impact Weapon . | . . . Slashing Weapon . | . . . Piercing Weapon . | . . . Special Melee Weapon . | . . . Unidentified Prototypes . | . . . Parts Lost 2 | . . 2 Power . | . . . Propulsion 2 | . . 2 Utility . | . . . Weapon . | . . . Highest Loss Streak 1 | . . 1 To Critical Strikes . | . . . Average Slot Usage (%) 99 | . 97 99 Engine 14 | . 14 14 Treads 20 | . 28 15 Wheel 6 | . . 11 Device 13 | . 11 14 Storage 14 | . 14 14 Ballistic Gun 17 | . 26 11 Launcher 1 | . 1 1 Special Weapon 9 | . . 14 Naked Turns . | . . . Heaviest Build 23 | 10 18 23 Greatest Support 40 | 40 40 40 Greatest Overweight (x) 1 | . . 1 Average Overweight (x) . | . . . Largest Inventory Capacity 10 | 8 10 10 Average Capacity 9 | 6 8 10 Most Carried 10 | 5 10 10 Average Carried 9 | 3 7 9 Final Capacity 10 | 8 10 10 Final Carried 10 | 5 10 10 Class Distribution -------------------- 97% | Mutant Dominant Class ---------------- Mutant | -10/Materials Mutant | -10/Subcaves Resources | -11 -10 -10 ----------- Run | Yrd Mat Sub Matter Collected 1060 | 207 240 613 Remotely . | . . . Salvage Created 687 | . 332 355 Parts 53 | . 25 28 Haulers Intercepted 2 | . 2 . Recyclers Shooed 2 | . 2 . Parts Field Recycled . | . . . Retrieved Matter . | . . . Parts Self-Destructed 20 | . . 20 Prevented . | . . . Kills | -11 -10 -10 ------- Run | Yrd Mat Sub Combat Hostiles Destroyed 16 | . 6 10 Guns 13 | . 5 8 Cannons 1 | . . 1 AOE 2 | . 1 1 Classes Destroyed 9 | . 5 4 Worker 1 | . 1 . Hauler 2 | . 2 . Turret 2 | . . 2 Watcher 3 | . 3 . Swarmer 8 | . 4 4 Grunt 2 | . 2 . Sentry 1 | . . 1 Cobbler 1 | . . 1 Subdweller 5 | . . 5 Best Kill Streak 7 | . 7 4 Combat Bots Only 5 | . 5 4 Max Kills in Single Turn 2 | . 1 2 Gunslinging . | . . . Exploded 1 | . 1 1 Melee . | . . . Uniques/NPCs Destroyed . | . . . Combat | -11 -10 -10 -------- Run | Yrd Mat Sub Hostile Shots Fired 123 | . 57 66 Missed 41 | . 23 18 Damage Taken 1100 | . 380 720 Core 254 | . 84 170 Absorbed by Shields . | . . . Core Remaining (%) 100 | 100 . . Volleys Fired 107 | . 37 70 Largest 2 | . 2 2 Hottest 200 | . 40 200 Shots Fired 204 | . 73 131 Gun 147 | . 72 75 Cannon . | . . . Launcher 13 | . 1 12 Special 44 | . . 44 Kinetic 147 | . 72 75 Thermal 44 | . . 44 Explosive 13 | . 1 12 Electromagnetic . | . . . Robot Hit Streak 8 | . 8 6 Robot Miss Streak 3 | . 2 3 Penetration Max . | . . . Secondary Targets 3 | . 3 . Max Gunslinging Chain 1 | . 1 . Shots Hit Robots 103 | . 50 53 Core Hits 58 | . 23 35 Critical Kills 1 | . . 1 Critical Parts Destroyed 1 | . . 1 Critical Strikes 3 | . . 3 Destroy 3 | . . 3 Melee Attacks . | . . . Impact . | . . . Slashing . | . . . Piercing . | . . . Sneak Attacks . | . . . Combat Hostiles . | . . . Follow-up Attacks . | . . . Damage Inflicted 1615 | . 426 1189 Guns 844 | . 410 434 Cannons . | . . . Explosions 455 | . . 455 Melee . | . . . Ramming 16 | . 16 . Kinetic 844 | . 410 434 Thermal 300 | . . 300 Explosive 455 | . . 455 Electromagnetic . | . . . Impact . | . . . Slashing . | . . . Piercing . | . . . Highest Corruption 1 | . 1 1 Average Corruption 1 | . 1 1 Corruption Purged . | . . . Corruption Blocked . | . . . Effects 27 | . 9 18 Message Errors 9 | . 3 6 Matter Fused 6 | . 2 4 Heat Flow Errors 2 | . . 2 Energy Discharges 5 | . 2 3 Data Loss (minor) 2 | . . 2 Data Loss (major) 2 | . 2 . Misfires 1 | . . 1 Overload Shots . | . . . Overflow Damage . | . . . Projectiles . | . . . Explosions . | . . . Melee . | . . . Knockbacks . | . . . Impact . | . . . Kinetic . | . . . Secondary . | . . . Self-Inflicted Damage 45 | . . 45 Shots 2 | . . 2 Rammed 6 | . 6 . Targets Rammed 6 | . 6 . Kicked . | . . . Crushed . | . . . Highest Temperature 198 | . 9 198 Average Temperature 63 | . 9 88 Received Heat Transfer 129 | . 27 102 Siege Activations . | . . . Robots Corrupted . | . . . Combat Hostiles . | . . . Parts Fried . | . . . Impact Corruptions . | . . . Robots Melted . | . . . Combat Hostiles . | . . . Parts Melted . | . . . Heat Transferred 680 | . . 680 Parts Sabotaged . | . . . Parts Stolen . | . . . Parts Stripped . | . . . Power Chain Reactions . | . . . Alert | -11 -10 -10 ------- Run | Yrd Mat Sub Peak Influence 154 | . 154 . Initial . | . . . Average 30 | . 32 . Maximum Alert Level . | . . . Low Security (%) 100 | 100 100 . Level 1 . | . . . Level 2 . | . . . Level 3 . | . . . Level 4 . | . . . Level 5 . | . . . High Security . | . . . Max Security . | . . . Squads Dispatched . | . . . Investigation . | . . . Extermination . | . . . Reinforcement . | . . . Assault . | . . . Garrison . | . . . Intercept . | . . . Searches Triggered . | . . . Construction Impeded . | . . . Haulers Reinforced . | . . . Active Scanning Responses . | . . . Cargo Convoy Interrupts . | . . . Stealth | -11 -10 -10 --------- Run | Yrd Mat Sub Distress Signals 2 | . 2 . Communications Jammed . | . . . Distress Signals . | . . . Times Spotted 37 | . 16 21 Peak Tracking Total 7 | . 7 6 Tactical Retreats 2 | . . 2 Traps | -11 -10 -10 ------- Run | Yrd Mat Sub Traps Triggered 2 | . . 2 Indirectly . | . . . Trap Hack Attempts . | . . . Triggered . | . . . Disarmed . | . . . Reprogrammed . | . . . Reused . | . . . Traps Extracted . | . . . Installed . | . . . Triggered . | . . . Machines | -11 -10 -10 ---------- Run | Yrd Mat Sub Machines Disabled 4 | . . 4 Max in Single Turn 3 | . . 3 Machines Repaired . | . . . Machines Dismantled . | . . . Machines Sabotaged . | . . . Overloaded Fab Kills . | . . . Hacking | -11 -10 -10 --------- Run | Yrd Mat Sub Machines Accessed 9 | . 8 1 Terminals 7 | . 7 . Fabricators . | . . . Repair Stations 1 | . 1 . Recycling Units . | . . . Scanalyzers . | . . . Garrison Access . | . . . Total Hacks 26 | . 17 9 Successful 16 | . 7 9 Failed 10 | . 10 . Catastrophic . | . . . Database Lockouts . | . . . Manual 17 | . 17 . Terminals 16 | . 16 . Fabricators . | . . . Repair Stations 1 | . 1 . Recycling Units . | . . . Scanalyzers . | . . . Garrison Access . | . . . Terminal Hacks 9 | . . 9 Record 8 | . . 8 Derelict Proto ID Bank 1 | . . 1 Fabricator Hacks . | . . . Repair Station Hacks . | . . . Recycling Unit Hacks . | . . . Scanalyzer . | . . . Garrison Access Hacks . | . . . Unauthorized Hacks 7 | . 7 . Terminals 7 | . 7 . Assimilate 2 | . 2 . Botnet 4 | . 4 . Operators 1 | . 1 . Fabricators . | . . . Repair Stations . | . . . Recycling Units . | . . . Scanalyzers . | . . . Garrison Access . | . . . Data Cores Recovered . | . . . Used . | . . . Hacking Detections 8 | . 8 . Full Trace Events . | . . . Feedback Events . | . . . Feedback Blocked . | . . . Robot Schematics Acquired . | . . . Robots Built . | . . . Authchips . | . . . Time . | . . . Total Robot Build Rating . | . . . Part Schematics Acquired . | . . . Parts Built . | . . . Authchips . | . . . Time . | . . . Total Part Build Rating . | . . . Parts Repaired . | . . . Time . | . . . Parts Recycled . | . . . Recycled Matter . | . . . Retrieved Matter . | . . . Retrieved Components . | . . . Parts Scanalyzed . | . . . Part Schematics Acquired . | . . . Parts Damaged . | . . . Bothacking | -11 -10 -10 ------------ Run | Yrd Mat Sub Used RIF Installer . | . . . Robots Hacked . | . . . Non-combat . | . . . Combat . | . . . Robot Hacks Applied . | . . . Relay Couplers Released . | . . . Fabnet Peak Effective % . | . . . Robots Rewired . | . . . Allies Hacked . | . . . Hacks Repelled . | . . . Allies | -11 -10 -10 -------- Run | Yrd Mat Sub Total Allies 2 | . 2 . Largest Group 2 | . 2 1 Highest-Rated Group 20 | . 20 10 Highest-Rated Ally 10 | . 10 10 Total Orders . | . . . Ally Attacks . | . . . Total Damage . | . . . Kills . | . . . Allies Corrupted . | . . . Allies Melted . | . . . Intel | -11 -10 -10 ------- Run | Yrd Mat Sub Robot Analysis Total . | . . . Derelict Logs Recovered . | . . . Drone Launches . | . . . Drone Recoveries . | . . . Exploration | -11 -10 -10 ------------- Run | Yrd Mat Sub Turns Passed 3744 | 96 1360 2288 Spaces Moved 2029 | 55 660 1314 Core 6 | 6 . . Treads 1366 | 43 660 663 Legs 6 | 6 . . Wheels 651 | . . 651 Hover . | . . . Flight . | . . . Fastest Speed 50 | 50 160 105 Average Speed 144 | 143 160 137 Slowest Speed 160 | 160 160 160 Overloaded Moves . | . . . Propulsion Burnouts . | . . . Robots Hopped . | . . . Cave-ins Triggered . | . . . Exploration Rate (%) 54 | 4 99 59 Regions Visited 2 Branch Regions 1 Pre-discovered Areas . | . . . Known Exits Taken . | . . . Unknown Exits Taken 2 | 1 1 . Scrap Searched 2 | . . 2 Spaces Dug 2 | . . 2 Terrain Destroyed 51 | . 9 42 Melee . | . . . Projectile 2 | . . 2 AOE 49 | . 9 40 Terrain Rammed . | . . . Walls Destroyed . | . . . Machines Disabled . | . . . Actions | -11 -10 -10 --------- Run | Yrd Mat Sub Total 2556 | 69 900 1587 Wait 322 | . 185 137 Move 2027 | 54 659 1314 Hop . | . . . Pick Up 20 | 5 4 11 Fast Attach 12 | 8 1 3 Attach 2 | . . 2 Detach . | . . . Swap 35 | . 5 30 Drop 25 | 2 3 20 Fire 107 | . 37 70 Melee . | . . . Ram . | . . . Kick . | . . . Crush 6 | . 6 . Escape Stasis . | . . . Rewire . | . . . Trap . | . . . Miscellaneous . | . . . Route ------- -11/Scrapyard -10/Materials (discovered 6 exits: [*Mat x3] / [*Min x2] / *Sub) -10/Subcaves (discovered 2 exits: [*Mat] / [*Rec]) History --------- Turn | Location | Event 3 | -11/Scrapyard | Discovered new exit (range 15) 97 | -11/Scrapyard | Entered Materials 271 | -10/Materials | Discovered new exit (range 6) 318 | -10/Materials | Build established: Mutant 523 | -10/Materials | Discovered new exit (range 13) 684 | -10/Materials | Discovered new exit (range 5) 884 | -10/Materials | Discovered new exit (range 5) 1118 | -10/Materials | Discovered new exit (range 15) 1248 | -10/Materials | Discovered new exit (range 16) 1457 | -10/Materials | Entered Subcaves 1457 | -10/Subcaves | Accompanied by 2 allies 1544 | -10/Subcaves | Shifting Twisted Machinery released Sub. Power Source 1672 | -10/Subcaves | Discovered new exit (range 11) 1705 | -10/Subcaves | Core integrity fell below 50% 1861 | -10/Subcaves | Discovered new exit (range 4) 1883 | -10/Subcaves | Core integrity fell below 20% 2739 | -10/Subcaves | A swath of the cavern ceiling suddenly collapsed 3472 | -10/Subcaves | Visited 4L-MR0's lab 3494 | -10/Subcaves | Found Flightbrick 3745 | -10/Subcaves | Disturbed a concealed Subdweller 3745 | -10/Subcaves | Destroyed by RH-5W5(R) with Subdweller Shrapnel Launcher Last Messages --------------- some of the others got blasted, too. 03485_ Testing Chamber breached. 03492_ Dropped Com. Wheel. 03493_ Dropped Sub. Machine Gun. 03493_ Dropped Battle Rifle. 03494_ Dropped Grenade Launcher. 03494_ Acquired Flightbrick. 03508_ 4L-MR0 mumbles to no one in particular: "Damn Subs sneaking around stealing my stuff." 03540_ System corrupted: Component data lost. 03739_ Searching scrap... 03739_ Found Sub. Shrapnel Launcher. 03739_ Found Mak. Hacking Suite. 03739_ Found 22 Matter. 03740_ Acquired 22 matter. 03742_ Dropped Hacking Suite. 03742_ Acquired Mak. Hacking Suite. 03743_ FMPBG&7MTFNV